fUST/lending_fUST_20240327
["ID","MTS","AMOUNT","RATE_DAILY","PERIOD"]
[320774003,1711553439176,-163.184615,0.00025078,2]
[320774005,1711553439188,-244.776922,0.00025078,2]
[320774007,1711553439202,-585.926143,0.00025078,2]
[320774009,1711553439211,-500.0,0.00025259,3]
[320774011,1711553439221,-151.8958432,0.00025261,2]
[320774013,1711553439234,-163.184615,0.00025392,2]
[320774015,1711553439245,-390.617428,0.00025392,2]
[320774017,1711553439254,-244.776922,0.00025392,2]
[320774019,1711553439265,-585.926143,0.00025392,2]
[320774021,1711553439275,-227.74420545,0.00025399,2]
[320774023,1711553439285,-227.74420545,0.00025406,2]
[320774025,1711553439294,-232.30023296,0.00025412,2]
[320774027,1711553439306,-227.74420545,0.00025525,2]
[320774029,1711553439316,-232.30023296,0.00025529,2]
[320774031,1711553439326,-227.74420545,0.00025571,2]
[320774033,1711553439335,-227.74420545,0.00025577,2]
[320774059,1711553439496,-232.30023296,0.00025633,2]
[320774061,1711553439508,-232.30023296,0.00025662,2]
[320774063,1711553439519,-214.3360388,0.00025665,2]
[320774065,1711553439528,-447.17459269,0.00025666,2]
[320774067,1711553439538,-163.184615,0.00025705,2]
[320774069,1711553439548,-390.617428,0.00025705,2]
[320774071,1711553439560,-244.776922,0.00025705,2]
[320774073,1711553439569,-585.926143,0.00025705,2]
[320774075,1711553439579,-232.30023296,0.00025733,2]
[320774077,1711553439589,-227.74420545,0.00025735,2]
[320774079,1711553439599,-303.0,0.00025833,2]
[320774081,1711553439609,-301.0,0.00025833,2]
[320774083,1711553439619,-232.30023296,0.0002589,2]
[320774085,1711553439629,-617.45092839,0.00026,3]
[320774087,1711553439638,-232.30023296,0.00026018,2]
[320774089,1711553439648,-163.184615,0.00026019,2]
[320774091,1711553439658,-390.617428,0.00026019,2]
[320774093,1711553439668,-244.776922,0.00026019,2]
[320774095,1711553439679,-585.926143,0.00026019,2]
[320774097,1711553439688,-227.74420545,0.00026058,2]
[320774099,1711553439698,-227.74420545,0.00026086,2]
[320774101,1711553439708,-232.30023296,0.00026123,2]
[320774103,1711553439718,-163.184615,0.00026332,2]
[320774105,1711553439727,-390.617428,0.00026332,2]
[320774107,1711553439736,-244.776922,0.00026332,2]
[320774109,1711553439747,-585.926143,0.00026332,2]
[320774111,1711553439757,-214.3360388,0.0002635,2]
[320774113,1711553439767,-232.30023296,0.00026387,2]
[320774115,1711553439777,-232.30023296,0.00026632,2]
[320774116,1711553439786,-232.30023296,0.000267,2]
[320774118,1711553439796,-227.74420545,0.00026791,2]
[320774120,1711553439806,-277.57598629,0.00026847,2]
[320774123,1711553439817,-227.74420545,0.00026892,2]
[320774124,1711553439827,-227.74420545,0.00026975,2]
[320774126,1711553439838,-1753.55394435,0.00026999,2]
[320774129,1711553439849,-3109.9808031,0.00027,2]
[320774131,1711553439858,-154.0,0.00027,2]
[320774133,1711553439868,-214.3360388,0.00027035,2]
[320774135,1711553439877,-447.17459269,0.00027036,2]
[320774137,1711553439886,-144787.72264516,0.00027135,3]
[320774139,1711553439895,-500.0,0.00027135,2]
[320774141,1711553439905,-500.0,0.00027135,2]
[320774143,1711553439914,-500.0,0.00027135,2]
[320774145,1711553439923,-500.0,0.00027135,2]
[320774147,1711553439932,-500.0,0.00027135,2]
[320774149,1711553439941,-500.0,0.00027135,2]
[320774151,1711553439950,-820.32,0.00027135,2]
[320774152,1711553439959,-500.0,0.00027135,2]
[320774154,1711553439969,-881.87,0.00027135,2]
[320774156,1711553439978,-14316.35,0.00027135,2]
[320774158,1711553439988,-2044.72,0.00027135,2]
[320774160,1711553439998,-2991.72,0.00027135,2]
[320774162,1711553440007,-1070.34,0.00027135,2]
[320774164,1711553440016,-18148.49,0.00027135,2]
[320774166,1711553440026,-3311.6,0.00027135,2]
[320774168,1711553440035,-4590.94,0.00027135,2]
[320774171,1711553440045,-500.0,0.00027136,2]
[320774173,1711553440056,-593.62,0.00027136,2]
[320774175,1711553440065,-500.0,0.00027136,2]
[320774177,1711553440074,-339.30752749,0.00027136,2]
[320774179,1711553440083,-1769.37,0.00027136,2]
[320774181,1711553440092,-500.0,0.00027136,2]
[320774182,1711553440101,-500.0,0.00027136,2]
[320774184,1711553440110,-500.0,0.00027136,2]
[320774187,1711553440120,-500.0,0.00027136,2]
[320774188,1711553440129,-500.0,0.00027136,2]
[320774190,1711553440138,-1184.82,0.00027136,2]
[320774192,1711553440148,-500.0,0.00027136,2]
[320774194,1711553440157,-500.0,0.00027136,2]
[320774197,1711553440167,-500.0,0.00027136,2]
[320774199,1711553440176,-500.0,0.00027136,2]
[320774201,1711553440186,-500.0,0.00027136,2]
[320774203,1711553440195,-500.0,0.00027136,2]
[320774205,1711553440203,-500.0,0.00027136,2]
[320774207,1711553440213,-500.0,0.00027136,2]
[320774209,1711553440224,-911.9,0.00027136,2]
[320774210,1711553440233,-853.66,0.00027136,2]
[320774212,1711553440243,-500.0,0.00027136,2]
[320774215,1711553440255,-500.0,0.00027136,2]
[320774217,1711553440264,-500.0,0.00027136,2]
[320774219,1711553440273,-500.0,0.00027136,2]
[320774220,1711553440283,-500.0,0.00027136,2]
[320774222,1711553440292,-500.0,0.00027136,2]
[320774225,1711553440302,-500.0,0.00027136,2]
[320774226,1711553440314,-2222.33,0.00027136,2]
[320774229,1711553440324,-2254.34,0.00027136,2]
[320774231,1711553440335,-500.0,0.00027136,2]
[320774233,1711553440345,-1172.89,0.00027136,2]
[320774235,1711553440357,-1048.8,0.00027136,2]
[320774237,1711553440366,-500.0,0.00027136,2]
[320774239,1711553440375,-500.0,0.00027136,2]
[320774241,1711553440385,-607.3,0.00027136,2]
[320774243,1711553440395,-1033.57,0.00027136,2]
[320774245,1711553440404,-500.0,0.00027136,2]
[320774247,1711553440414,-500.0,0.00027136,2]
[320774249,1711553440423,-500.0,0.00027136,2]
[320774251,1711553440432,-500.0,0.00027137,2]
[320774253,1711553440441,-500.0,0.00027137,2]
[320774255,1711553440451,-500.0,0.00027137,2]
[320774257,1711553440461,-500.0,0.00027137,2]
[320774259,1711553440471,-537.44353425,0.00027137,2]
[320774260,1711553440480,-500.0,0.00027137,2]
[320774262,1711553440490,-500.0,0.00027137,2]
[320774264,1711553440500,-395.06849054,0.00027137,2]
[320774267,1711553440510,-500.0,0.00027137,2]
[320774268,1711553440523,-500.0,0.00027137,2]
[320774271,1711553440533,-232.30023296,0.00027144,2]
[320774273,1711553440542,-227.74420545,0.00027241,2]
[320774275,1711553440551,-227.74420545,0.00027331,2]
[320774277,1711553440564,-232.30023296,0.00027363,2]
[320774278,1711553440574,-322.828959,0.00027395,2]
[320774281,1711553440583,-188.24857442,0.00027396,2]
[320774283,1711553440595,-500.0,0.00027397,14]
[320774285,1711553440604,-502.03249242,0.00027397,14]
[320774286,1711553440613,-4055.66,0.00027397,2]
[320774288,1711553440622,-2014.98872859,0.00027397,2]
[320774294,1711553440668,-552.03553325,0.00027397,2]
[320774536,1711553443142,-500.0,0.00024395,2]
[320774538,1711553443151,-500.0,0.00024395,2]
[320774540,1711553443161,-533.97,0.00027135,2]
[320774542,1711553443171,-1488.63573816,0.00027397,2]
[320774544,1711553443180,-3106.95582712,0.00027397,7]
[320774839,1711553446113,-324.51976555,0.00024396,2]
[320779289,1711554607490,780.49649017,0.00019965,2]
[320779474,1711554638094,-1858.33465812,0.00020961,2]
[320779476,1711554638104,-921.19005659,0.00020962,2]
[320779478,1711554638113,-628.02482451,0.00020963,2]
[320779480,1711554638123,-2334.12948391,0.00021469,2]
[320779482,1711554638135,-1690.23274431,0.00021469,2]
[320779488,1711554638179,-1521.51039728,0.00021469,2]
[320779490,1711554638188,-160.95501081,0.0002147,2]
[320779492,1711554638197,-1098.50630422,0.0002147,2]
[320779494,1711554638206,-242.0,0.00021475,2]
[320779496,1711554638215,-154.95351395,0.00021484,2]
[320779498,1711554638224,-159.01,0.000215,2]
[320779499,1711554638233,-1991.92836,0.00021885,2]
[320779501,1711554638242,-177.096416,0.00021923,2]
[320779503,1711554638251,-3704.91014556,0.00022,2]
[320779506,1711554638263,-620.40124123,0.00022011,2]
[320779508,1711554638273,-166.666666,0.00022157,2]
[320779509,1711554638282,-877.79537572,0.00022234,2]
[320779512,1711554638291,-1896.932628,0.00022235,2]
[320779514,1711554638300,-914.4242144,0.00022289,2]
[320779516,1711554638309,-166.666666,0.00022761,2]
[320779518,1711554638319,-241.83291114,0.00023,2]
[320779520,1711554638330,-166.666666,0.00023365,2]
[320779521,1711554638345,-166.666666,0.00023969,2]
[320779524,1711554638354,-166.04704275,0.00024293,2]
[320779525,1711554638363,-204.36873626,0.00024294,2]
[320779527,1711554638372,-670.76188904,0.00024294,2]
[320779529,1711554638381,-225.0111954,0.00024392,2]
[320779531,1711554638390,-155.13807288,0.00024392,2]
[320779533,1711554638399,-281.16717003,0.00024392,2]
[320779535,1711554638408,-1922.64152204,0.00024392,2]
[320779537,1711554638417,-437.35894058,0.00024392,2]
[320779539,1711554638426,-686.05454832,0.00024392,2]
[320779541,1711554638435,-187.35685752,0.00024392,2]
[320779543,1711554638445,-205.37769357,0.00024392,2]
[320779545,1711554638454,-270.62040597,0.00024392,2]
[320779547,1711554638463,-327.24016799,0.00024392,2]
[320779549,1711554638472,-155.31777968,0.00024392,2]
[320779551,1711554638481,-929.41350017,0.00024392,2]
[320779553,1711554638491,-1547.52596593,0.00024392,2]
[320779555,1711554638506,-3444.03044866,0.00024393,2]
[320779557,1711554638516,-12093.47970792,0.00024393,2]
[320779559,1711554638525,-500.0,0.00024394,2]
[320779561,1711554638534,-500.0,0.00024394,2]
[320779563,1711554638544,-500.0,0.00024394,2]
[320779565,1711554638553,-500.0,0.00024394,2]
[320779567,1711554638562,-500.0,0.00024394,2]
[320779569,1711554638571,-482.26506948,0.00024394,2]
[320779571,1711554638580,-500.0,0.00024394,2]
[320779573,1711554638590,-154.14705046,0.00024394,2]
[320779575,1711554638599,-500.0,0.00024394,2]
[320779577,1711554638608,-500.0,0.00024394,2]
[320779579,1711554638617,-500.0,0.00024394,2]
[320779581,1711554638626,-500.0,0.00024394,2]
[320779583,1711554638635,-323.53995753,0.00024394,2]
[320779585,1711554638644,-500.0,0.00024394,2]
[320779587,1711554638653,-339.82555787,0.00024394,2]
[320779588,1711554638662,-500.61957618,0.00024394,2]
[320779590,1711554638671,-500.11623501,0.00024394,2]
[320779592,1711554638680,-500.0,0.00024394,2]
[320779594,1711554638689,-500.0,0.00024394,2]
[320779596,1711554638697,-538.82,0.00024394,2]
[320779598,1711554638706,-500.0,0.00024394,2]
[320779600,1711554638715,-500.0,0.00024394,2]
[320779602,1711554638725,-500.0,0.00024394,2]
[320779604,1711554638734,-884.99,0.00024394,2]
[320779606,1711554638743,-500.0,0.00024394,2]
[320779608,1711554638751,-555.21609508,0.00024394,2]
[320779610,1711554638763,-500.0,0.00024394,2]
[320779611,1711554638772,-500.0,0.00024394,2]
[320779613,1711554638782,-420.2708428,0.00024394,2]
[320779615,1711554638792,-916.05,0.00024394,2]
[320779617,1711554638801,-18867.08,0.00024394,2]
[320779619,1711554638810,-500.0,0.00024394,2]
[320779621,1711554638820,-516.58,0.00024394,2]
[320779623,1711554638830,-500.0,0.00024394,2]
[320779625,1711554638839,-500.0,0.00024394,2]
[320779627,1711554638849,-2127.84,0.00024394,2]
[320779629,1711554638859,-500.0,0.00024394,2]
[320779631,1711554638868,-1162.59,0.00024394,2]
[320779633,1711554638878,-500.0,0.00024395,2]
[320779635,1711554638887,-500.0,0.00024395,2]
[320779637,1711554638897,-500.0,0.00024395,2]
[320779639,1711554638906,-617.82,0.00024395,2]
[320779641,1711554638917,-500.0,0.00024395,2]
[320779643,1711554638926,-500.0,0.00024395,2]
[320779645,1711554638936,-500.0,0.00024395,2]
[320779647,1711554638946,-1841.0,0.00024395,2]
[320779649,1711554638955,-500.0,0.00024395,2]
[320779651,1711554638965,-500.0,0.00024395,2]
[320779652,1711554638974,-500.0,0.00024395,2]
[320779653,1711554638983,-851.66,0.00024395,2]
[320779655,1711554638993,-500.79872623,0.00024395,2]
[320779657,1711554639002,-500.0,0.00024395,2]
[320779659,1711554639013,-500.0,0.00024395,2]
[320779660,1711554639022,-500.0,0.00024395,2]
[320779662,1711554639032,-1182.23,0.00024395,2]
[320779663,1711554639042,-515.34,0.00024395,2]
[320779665,1711554639052,-500.0,0.00024395,2]
[320779666,1711554639062,-500.0,0.00024395,2]
[320779668,1711554639072,-500.0,0.00024395,2]
[320779669,1711554639082,-500.0,0.00024395,2]
[320779670,1711554639091,-500.0,0.00024395,2]
[320779672,1711554639101,-500.0,0.00024395,2]
[320779674,1711554639111,-520.38402693,0.00024395,2]
[320779675,1711554639120,-500.0,0.00024395,2]
[320779676,1711554639130,-500.0,0.00024395,2]
[320779678,1711554639139,-500.0,0.00024395,2]
[320779680,1711554639149,-500.0,0.00024395,2]
[320779681,1711554639159,-500.0,0.00024395,2]
[320779682,1711554639169,-500.0,0.00024395,2]
[320779683,1711554639178,-500.0,0.00024395,2]
[320779684,1711554639187,-500.0,0.00024395,2]
[320779685,1711554639196,-500.0,0.00024395,2]
[320779686,1711554639206,-500.0,0.00024395,2]
[320779687,1711554639216,-500.0,0.00024395,2]
[320779688,1711554639225,-4766.18,0.00024395,2]
[320779689,1711554639234,-500.0,0.00024395,2]
[320779690,1711554639243,-952.35,0.00024395,2]
[320779691,1711554639253,-500.0,0.00024395,2]
[320779692,1711554639264,-500.0,0.00024395,2]
[320779693,1711554639273,-632.35,0.00024395,2]
[320779694,1711554639282,-500.0,0.00024395,2]
[320779695,1711554639292,-2414.51,0.00024395,2]
[320779696,1711554639302,-500.09678149,0.00024395,2]
[320779697,1711554639311,-500.0,0.00024395,2]
[320779698,1711554639321,-500.0,0.00024395,2]
[320779699,1711554639331,-1271.33,0.00024395,2]
[320779700,1711554639340,-500.0,0.00024395,2]
[320779701,1711554639350,-2449.31,0.00024395,2]
[320779702,1711554639359,-1048.8,0.00024395,2]
[320779703,1711554639369,-500.0,0.00024395,2]
[320779704,1711554639378,-500.0,0.00024395,2]
[320779705,1711554639387,-14556.13,0.00024395,2]
[320779706,1711554639396,-500.0,0.00024395,2]
[320779707,1711554639406,-309.8825653,0.00024395,2]
[320779708,1711554639415,-500.0,0.00024395,2]
[320779709,1711554639424,-3016.07,0.00024395,2]
[320779710,1711554639433,-1071.49,0.00024395,2]
[320779711,1711554639443,-500.0,0.00024395,2]
[320779712,1711554639452,-500.0,0.00024395,2]
[320779713,1711554639461,-3311.6,0.00024395,2]
[320779714,1711554639470,-500.0,0.00024396,2]
[320779715,1711554639479,-500.0,0.00024396,2]
[320779716,1711554639487,-500.0,0.00024396,2]
[320779717,1711554639496,-166.666666,0.00024574,2]
[320779718,1711554639507,-500.0,0.00024657,2]
[320779719,1711554639517,-151.0,0.000248,2]
[320779720,1711554639528,-204.36873624,0.00024979,2]
[320779721,1711554639537,-155.13496742,0.00025,2]
[320779722,1711554639548,-7762.27330439,0.00025,2]
[320779723,1711554639558,-703.111371,0.00025078,2]
[320779724,1711554639567,-326.36923,0.00025078,2]
[320779726,1711554639576,-203.980769,0.00025078,2]
[320779728,1711554639585,-273.4322,0.00025078,2]
[320779730,1711554639594,-166.666666,0.00025178,2]
[320779732,1711554639603,-151.8958432,0.00025208,2]
[320779734,1711554639612,-703.111371,0.00025392,2]
[320779735,1711554639622,-326.36923,0.00025392,2]
[320779736,1711554639631,-273.4322,0.00025392,2]
[320779737,1711554639640,-252.620109,0.00025485,2]
[320779738,1711554639651,-237.86617013,0.0002549,2]
[320779739,1711554639659,-204.36873624,0.00025665,2]
[320779740,1711554639668,-670.76188904,0.00025665,2]
[320779741,1711554639678,-237.86617013,0.00025697,2]
[320779742,1711554639687,-703.111371,0.00025705,2]
[320779743,1711554639696,-326.36923,0.00025705,2]
[320779744,1711554639706,-273.4322,0.00025705,2]
[320779745,1711554639716,-237.86617013,0.00025786,2]
[320779746,1711554639727,-237.86617013,0.00025792,2]
[320779747,1711554639736,-303.0,0.0002588,2]
[320779748,1711554639746,-301.0,0.0002588,2]
[320779750,1711554639755,-237.86617013,0.00025901,2]
[320779751,1711554639769,-252.620109,0.00025991,2]
[320779752,1711554639779,-155.12409928,0.00026,2]
[320779753,1711554639790,-703.111371,0.00026019,2]
[320779754,1711554639799,-326.36923,0.00026019,2]
[320779755,1711554639810,-273.4322,0.00026019,2]
[320779756,1711554639819,-252.620109,0.00026027,2]
[320779757,1711554639830,-237.86617013,0.0002603,2]
[320779759,1711554639840,-703.111371,0.00026332,2]
[320779760,1711554639849,-326.36923,0.00026332,2]
[320779761,1711554639859,-203.980769,0.00026332,2]
[320779762,1711554639868,-273.4322,0.00026332,2]
[320779763,1711554639877,-204.36873624,0.0002635,2]
[320779764,1711554639888,-237.86617013,0.00026362,2]
[320779765,1711554639898,-252.620109,0.00026365,2]
[320779766,1711554639908,-237.86617013,0.00026446,2]
[320779768,1711554639918,-237.86617013,0.00026541,2]
[320779769,1711554639928,-237.86617013,0.00026828,2]
[320779770,1711554639937,-252.620109,0.00026878,2]
[320779772,1711554639947,-252.620109,0.0002688,2]
[320779773,1711554639956,-1753.55394435,0.00026899,2]
[320779774,1711554639965,-5288.02939785,0.000269,2]
[320779775,1711554639975,-252.620109,0.00026935,2]
[320779776,1711554639985,-3109.9808031,0.00027,2]
[320779777,1711554639995,-154.0,0.00027,2]
[320779778,1711554640005,-204.36873624,0.00027035,2]
[320779779,1711554640017,-670.76188904,0.00027035,2]
[320779780,1711554640027,-252.620109,0.00027041,2]
[320779781,1711554640036,-237.86617013,0.00027077,2]
[320779783,1711554640046,-237.86617013,0.00027078,2]
[320779785,1711554640057,-237.86617013,0.00027098,2]
[320779787,1711554640066,-252.620109,0.00027107,2]
[320779788,1711554640077,-237.86617013,0.00027123,2]
[320779789,1711554640087,-500.0,0.00027134,2]
[320779790,1711554640096,-500.0,0.00027134,2]
[320779791,1711554640106,-500.0,0.00027134,2]
[320779792,1711554640115,-500.0,0.00027134,2]
[320779793,1711554640125,-500.0,0.00027134,2]
[320779794,1711554640134,-500.0,0.00027134,2]
[320779795,1711554640143,-538.82,0.00027134,2]
[320779796,1711554640152,-500.0,0.00027134,2]
[320779797,1711554640161,-500.0,0.00027134,2]
[320779798,1711554640171,-884.99,0.00027134,2]
[320779799,1711554640180,-500.0,0.00027134,2]
[320779800,1711554640189,-500.0,0.00027134,2]
[320779801,1711554640198,-916.05,0.00027134,2]
[320779802,1711554640208,-18867.08,0.00027134,2]
[320779803,1711554640217,-516.58,0.00027134,2]
[320779804,1711554640227,-500.0,0.00027134,2]
[320779805,1711554640236,-2127.84,0.00027134,2]
[320779806,1711554640246,-500.0,0.00027134,2]
[320779807,1711554640255,-1162.59,0.00027134,2]
[320779808,1711554640266,-144787.72264516,0.00027135,3]
[320779809,1711554640274,-500.0,0.00027135,2]
[320779810,1711554640284,-617.82,0.00027135,2]
[320779811,1711554640293,-500.0,0.00027135,2]
[320779812,1711554640302,-339.30752749,0.00027135,2]
[320779813,1711554640311,-500.0,0.00027135,2]
[320779814,1711554640321,-1841.0,0.00027135,2]
[320779815,1711554640331,-500.0,0.00027135,2]
[320779816,1711554640340,-851.66,0.00027135,2]
[320779817,1711554640349,-500.0,0.00027135,2]
[320779818,1711554640358,-500.0,0.00027135,2]
[320779819,1711554640367,-1182.23,0.00027135,2]
[320779820,1711554640377,-500.0,0.00027135,2]
[320779821,1711554640386,-500.0,0.00027135,2]
[320779822,1711554640395,-500.0,0.00027135,2]
[320779823,1711554640404,-500.0,0.00027135,2]
[320779824,1711554640413,-500.0,0.00027135,2]
[320779825,1711554640422,-500.0,0.00027135,2]
[320779826,1711554640432,-500.0,0.00027135,2]
[320779827,1711554640441,-500.0,0.00027135,2]
[320779828,1711554640451,-500.0,0.00027135,2]
[320779829,1711554640462,-500.0,0.00027135,2]
[320779830,1711554640472,-500.0,0.00027135,2]
[320779831,1711554640482,-500.0,0.00027135,2]
[320779832,1711554640491,-4766.18,0.00027135,2]
[320779833,1711554640500,-500.0,0.00027135,2]
[320779834,1711554640510,-952.35,0.00027135,2]
[320779835,1711554640519,-500.0,0.00027135,2]
[320779836,1711554640529,-500.0,0.00027135,2]
[320779837,1711554640538,-632.35,0.00027135,2]
[320779838,1711554640547,-500.0,0.00027135,2]
[320779839,1711554640557,-2414.51,0.00027135,2]
[320779840,1711554640568,-500.0,0.00027135,2]
[320779841,1711554640577,-500.0,0.00027135,2]
[320779842,1711554640586,-1271.33,0.00027135,2]
[320779843,1711554640596,-500.0,0.00027135,2]
[320779844,1711554640606,-2449.31,0.00027135,2]
[320779845,1711554640615,-1048.8,0.00027135,2]
[320779846,1711554640624,-500.0,0.00027135,2]
[320779847,1711554640633,-14556.13,0.00027135,2]
[320779848,1711554640642,-500.0,0.00027135,2]
[320779849,1711554640651,-3016.07,0.00027135,2]
[320779850,1711554640660,-1071.49,0.00027135,2]
[320779851,1711554640672,-500.0,0.00027135,2]
[320779852,1711554640685,-3311.6,0.00027135,2]
[320779853,1711554640694,-500.0,0.00027136,2]
[320779854,1711554640703,-252.620109,0.00027265,2]
[320779855,1711554640713,-1903.82352935,0.00027297,2]
[320779856,1711554640722,-252.620109,0.0002737,2]
[320779857,1711554640732,-172.3213079,0.00027395,2]
[320779858,1711554640741,-179.03774066,0.00027395,2]
[320779859,1711554640750,-188.24857442,0.00027395,2]
[320779860,1711554640761,-322.828959,0.00027395,2]
[320779861,1711554640771,-500.0,0.00027397,14]
[320779862,1711554640780,-502.03249242,0.00027397,14]
[320779863,1711554640790,-4127.83,0.00027397,2]
[320779864,1711554640800,-4127.83,0.00027397,2]
[320779865,1711554640814,-3965.85,0.00027397,7]
[320779866,1711554640823,-3965.85,0.00027397,7]
[320779867,1711554640833,-2244.65390211,0.00027397,2]
[320779868,1711554640842,-2244.65390211,0.00027397,2]
[320779869,1711554640853,-2244.65390211,0.00027397,2]
[320779870,1711554640863,-2244.65390211,0.00027397,2]
[320779871,1711554641035,-2244.65390211,0.00027397,2]
[320779872,1711554641046,-2244.65390211,0.00027397,2]
[320779873,1711554641056,-2244.65390211,0.00027397,2]
[320779874,1711554641066,-2244.65390211,0.00027397,2]
[320779875,1711554641078,-2244.65390211,0.00027397,2]
[320779876,1711554641088,-2244.65390211,0.00027397,2]
[320779877,1711554641097,-2244.65390211,0.00027397,2]
[320779878,1711554641106,-2244.65390211,0.00027397,2]
[320779879,1711554641116,-2244.65390211,0.00027397,2]
[320779880,1711554641125,-1958.49769681,0.00027397,2]
[320779881,1711554641254,-286.1562053,0.00027397,2]
[320779882,1711554641267,-578.32175929,0.00027397,2]
[320779915,1711554643312,-396.39215654,0.00027135,2]
[320779917,1711554643322,-1666.33214282,0.00027397,2]
[320779919,1711554643331,-2244.65390211,0.00027397,2]
[320779921,1711554643340,-2244.65390211,0.00027397,2]
[320779923,1711554643349,-2244.65390211,0.00027397,2]
[320779925,1711554643359,-2244.65390211,0.00027397,2]
[320779927,1711554643368,-2244.65390211,0.00027397,2]
[320779929,1711554643378,-2244.65390211,0.00027397,2]
[320779931,1711554643387,-2244.65390211,0.00027397,2]
[320779933,1711554643396,-2244.65390211,0.00027397,2]
[320779934,1711554643405,-2244.65390211,0.00027397,2]
[320779935,1711554643415,-2244.65390211,0.00027397,2]
[320779936,1711554643424,-2244.65390211,0.00027397,2]
[320779937,1711554643433,-2244.65390211,0.00027397,2]
[320779938,1711554643443,-2244.65390211,0.00027397,2]
[320779939,1711554643452,-2244.65390211,0.00027397,2]
[320779941,1711554643461,-2244.65390211,0.00027397,2]
[320779943,1711554643470,-2244.65390211,0.00027397,2]
[320779944,1711554643480,-2244.65390211,0.00027397,2]
[320779945,1711554643495,-2244.65390211,0.00027397,2]
[320779946,1711554643505,-2244.65390211,0.00027397,2]
[320779947,1711554643517,-2244.65390211,0.00027397,2]
[320779948,1711554643527,-2244.65390211,0.00027397,2]
[320779950,1711554643536,-2244.65390211,0.00027397,2]
[320779952,1711554643546,-2244.65390211,0.00027397,2]
[320779954,1711554643555,-1132.3336605,0.00027397,2]
[320779956,1711554643567,-1112.32024161,0.00027397,2]
[320779958,1711554643577,-2244.65390211,0.00027397,2]
[320779960,1711554643586,-2244.65390211,0.00027397,2]
[320779962,1711554643595,-2244.65390211,0.00027397,2]
[320779964,1711554643605,-2244.65390211,0.00027397,2]
[320779966,1711554643614,-2244.65390211,0.00027397,2]
[320779968,1711554643623,-2244.65390211,0.00027397,2]
[320779970,1711554643632,-2244.65390211,0.00027397,2]
[320779972,1711554643643,-2244.65390211,0.00027397,2]
[320779974,1711554643653,-2244.65390211,0.00027397,2]
[320779976,1711554643662,-2244.65390211,0.00027397,2]
[320779978,1711554643671,-2244.65390211,0.00027397,2]
[320779980,1711554643681,-2244.65390211,0.00027397,2]
[320779982,1711554643691,-2244.65390211,0.00027397,2]
[320779984,1711554643702,-2244.65390211,0.00027397,2]
[320779987,1711554643711,-2244.65390211,0.00027397,2]
[320779988,1711554643721,-2244.65390211,0.00027397,2]
[320779990,1711554643731,-2244.65390211,0.00027397,2]
[320779993,1711554643741,-2244.65390211,0.00027397,2]
[320779995,1711554643750,-2244.65390211,0.00027397,2]
[320779996,1711554643765,-2244.65390211,0.00027397,2]
[320779999,1711554643775,-2244.65390211,0.00027397,2]
[320780001,1711554643785,-2244.65390211,0.00027397,2]
[320780003,1711554643795,-2244.65390211,0.00027397,2]
[320780005,1711554643806,-2244.65390211,0.00027397,2]
[320780007,1711554643815,-2244.65390211,0.00027397,2]
[320780008,1711554643827,-252.620109,0.0002745,2]
[320780010,1711554643837,-6359.70584624,0.000275,2]
[320780013,1711554643848,-252.620109,0.00027502,2]
[320780015,1711554643857,-252.620109,0.00027565,2]
[320780016,1711554643867,-237.86617013,0.00027671,2]
[320780018,1711554643877,-154.0,0.00027671,2]
[320780020,1711554643886,-151.89584318,0.00027685,2]
[320780022,1711554643896,-153.0,0.0002782,2]
[320780024,1711554643907,-155.5819591,0.0002782,2]
[320780026,1711554643918,-154.4911542,0.0002782,2]